[Event "African Games-chT 2019"]
[Site "Casablanca"]
[Date "2019.08.24"]
[Round "2.19"]
[White "Ogbiyoyo, Perpetual Eloho"]
[Black "Francis, Onkemetse"]
[Result "1/2-1/2"]
[ECO "C77"]
[WhiteElo "1831"]
[BlackElo "1792"]
[Annotator "NA"]
[PlyCount "132"]
[EventDate "2019.08.24"]
[EventType "team-tourn"]
[EventCountry "MAR"]
[SourceTitle "playchess.com"]
[Source "ChessBase"]
[SourceQuality "1"]
[WhiteTeam "Nigeria"]
[BlackTeam "Botswana"]
[WhiteTeamCountry "NGR"]
[BlackTeamCountry "BOT"]
[TimeControl "900+10"]

1. e4 {[%emt 0:00:00]} e5 {[%emt 0:00:00]} 2. Nf3 {[%emt 0:00:00]} Nc6 {[%emt 0:00:00]} 3. Bb5 {[%emt 0:00:00]} a6 {[%emt 0:00:00]} 4. Ba4 {[%emt 0:00:00]} Nf6 {[%emt 0:00:08]} 5. d3 {[%emt 0:00:04]} b5 {[%emt 0:00:30]} 6. Bb3 {[%emt 0:00:02]} Bc5 {[%emt 0:00:03]} 7. O-O {[%emt 0:00:03]} d6 {[%emt 0:00:02]} 8. h3 {[%emt 0:00:04]} Na5 {[%emt 0:00:11]} 9. Bg5 {[%emt 0:00:18]} Nxb3 {[%emt 0:00:06]} 10. axb3 {[%emt 0:00:03]} h6 {[%emt 0:00:02]} 11. Bh4 {[%emt 0:00:01]} Be6 {[%emt 0:00:21]} 12. c3 {[%emt 0:00:04]} Bb6 {[%emt 0:00:34]} 13. Re1 {[%emt 0:00:10]} O-O {[%emt 0:00:02]} 14. d4 {[%emt 0:00:35]} exd4 {[%emt 0:00:19]} 15. cxd4 {[%emt 0:00:03]} Qc8 {[%emt 0:01:16]} 16. Bxf6 {[%emt 0:00:12]} gxf6 {[%emt 0:00:00]} 17. Nc3 {[%emt 0:00:43]} Kg7 {[%emt 0:00:25]} 18. d5 {[%emt 0:01:20]} Bd7 {[%emt 0:00:02]} 19. Nh4 {[%emt 0:00:25]} Rg8 {[%emt 0:01:00]} 20. Qh5 {[%emt 0:00:10]} Qf8 {[%emt 0:04:46]} 21. Nd1 {[%emt 0:04:25]} Kh7 {[%emt 0:00:12]} 22. Kh2 {[%emt 0:01:29]} Qg7 {[%emt 0:01:02]} 23. Ne3 {[%emt 0:00:43]} Qg5 {[%emt 0:02:45]} 24. Qxg5 {[%emt 0:01:36]} fxg5 {[%emt 0:00:05]} 25. Nhf5 {[%emt 0:01:07]} Bxf5 {[%emt 0:01:31]} 26. exf5 {[%emt 0:00:04]} Kg7 {[%emt 0:00:31]} 27. g4 {[%emt 0:01:00]} a5 {[%emt 0:00:17]} 28. Kg2 {[%emt 0:00:07]} Rge8 {[%emt 0:00:01]} 29. Nc2 {[%emt 0:00:20]} Kf6 {[%emt 0:00:31]} 30. Na3 {[%emt 0:00:18]} b4 {[%emt 0:00:40]} 31. Nc4 {[%emt 0:00:04]} Rxe1 {[%emt 0:00:04]} 32. Rxe1 {[%emt 0:00:02]} Rc8 {[%emt 0:00:23]} 33. Kg3 {[%emt 0:00:34]} Ra8 {[%emt 0:00:27]} 34. f4 {[%emt 0:00:08]} Bd4 {[%emt 0:00:18]} 35. Kf3 {[%emt 0:00:54]} a4 {[%emt 0:00:45]} 36. Rd1 {[%emt 0:00:07]} Bc5 {[%emt 0:00:08]} 37. Ra1 {[%emt 0:00:04]} a3 {[%emt 0:00:07]} 38. bxa3 {[%emt 0:00:03]} bxa3 {[%emt 0:00:02]} 39. Ra2 {[%emt 0:00:11]} Rb8 {[%emt 0:00:04]} 40. Nd2 {[%emt 0:00:39]} Rb4 {[%emt 0:00:01]} 41. fxg5+ hxg5 {[%emt 0:00:01]} 42. Ne4+ {[%emt 0:01:50]} Kg7 {[%emt 0:00:29]} 43. Nxc5 {[%emt 0:00:00]} dxc5 44. Rxa3 Rd4 {[%emt 0:00:11]} 45. Ra7 {[%emt 0:00:00]} Rxd5 {[%emt 0:00:13]} 46. Rxc7 {[%emt 0:00:00]} Rd3+ {[%emt 0:00:02]} 47. Ke4 {[%emt 0:00:42]} Rxh3 {[%emt 0:00:03]} 48. Rxc5 {[%emt 0:00:06]} Rxb3 {[%emt 0:00:02]} 49. Rc4 {[%emt 0:00:23]} Kf6 {[%emt 0:00:43]} 50. Rc6+ {[%emt 0:00:04]} Kg7 {[%emt 0:00:00]} 51. Rc4 {[%emt 0:01:12]} Rb5 {[%emt 0:00:24]} 52. Rd4 {[%emt 0:00:02]} Rb3 {[%emt 0:00:14]} 53. Ke5 {[%emt 0:00:06]} Rb5+ {[%emt 0:00:06]} 54. Kd6 {[%emt 0:00:03]} Kf6 {[%emt 0:00:09]} 55. Kc6 {[%emt 0:00:11]} Re5 {[%emt 0:00:10]} 56. Rd6+ {[%emt 0:00:26]} Kg7 {[%emt 0:00:07]} 57. Rd4 {[%emt 0:00:19]} Re3 {[%emt 0:00:02]} 58. Kd6 {[%emt 0:00:05]} Kf6 {[%emt 0:00:05]} 59. Kd7 {[%emt 0:00:08]} Rf3 {[%emt 0:00:53]} 60. Re4 {[%emt 0:00:44]} Rf4 {[%emt 0:00:13]} 61. Re8 {[%emt 0:00:15]} Rxg4 {[%emt 0:00:02]} 62. Kd6 {[%emt 0:00:15]} Kxf5 {[%emt 0:00:04]} 63. Rf8 {[%emt 0:00:10]} f6 {[%emt 0:00:01]} 64. Ke7 {[%emt 0:00:06]} Re4+ {[%emt 0:00:03]} 65. Kd6 {[%emt 0:00:01]} g4 {[%emt 0:00:06]} 66. Kd5 {[%emt 0:00:02]} Re5+ {[%emt 0:00:02]} 1/2-1/2

[Event "African Games-chT 2019"]
[Site "Casablanca"]
[Date "2019.08.24"]
[Round "2.20"]
[White "Gabatshwarwe Refilwe"]
[Black "Ofowino, Toritsemuwa"]
[Result "1/2-1/2"]
[ECO "D02"]
[WhiteElo "1649"]
[BlackElo "1877"]
[Annotator "NA"]
[PlyCount "186"]
[EventDate "2019.08.24"]
[EventType "team-tourn"]
[EventCountry "MAR"]
[SourceTitle "playchess.com"]
[Source "ChessBase"]
[SourceQuality "1"]
[WhiteTeam "Botswana"]
[BlackTeam "Nigeria"]
[WhiteTeamCountry "BOT"]
[BlackTeamCountry "NGR"]
[TimeControl "900+10"]

1. d4 {[%emt 0:00:00]} d5 {[%emt 0:00:00]} 2. Nf3 {[%emt 0:00:00]} Nf6 {[%emt 0:00:00]} 3. Bf4 {[%emt 0:00:00]} c5 {[%emt 0:00:00]} 4. e3 {[%emt 0:00:03]} Qb6 {[%emt 0:00:06]} 5. Nc3 {[%emt 0:00:14]} e6 {[%emt 0:00:10]} 6. Be2 {[%emt 0:01:05]} a6 {[%emt 0:00:52]} 7. Rb1 {[%emt 0:00:15]} Be7 {[%emt 0:00:54]} 8. h3 {[%emt 0:00:02]} Nc6 {[%emt 0:00:22]} 9. O-O {[%emt 0:00:45]} O-O {[%emt 0:00:02]} 10. a3 {[%emt 0:00:19]} cxd4 {[%emt 0:00:56]} 11. exd4 {[%emt 0:00:09]} Bd7 {[%emt 0:00:22]} 12. Re1 {[%emt 0:00:42]} Rfc8 {[%emt 0:00:03]} 13. Na2 {[%emt 0:00:57]} Na5 {[%emt 0:00:28]} 14. c3 {[%emt 0:00:39]} Ba4 {[%emt 0:00:45]} 15. Qxa4 {[%emt 0:00:11]} Nc4 {[%emt 0:00:02]} 16. Ne5 {[%emt 0:00:27]} Nxe5 {[%emt 0:00:42]} 17. Bxe5 {[%emt 0:00:06]} Ne4 {[%emt 0:00:03]} 18. Qd1 {[%emt 0:00:36]} Nd6 {[%emt 0:01:30]} 19. Bxd6 {[%emt 0:00:21]} Bxd6 {[%emt 0:00:01]} 20. Nb4 {[%emt 0:00:22]} Rc7 {[%emt 0:00:03]} 21. Nd3 {[%emt 0:00:21]} Rac8 {[%emt 0:00:20]} 22. Bf3 {[%emt 0:00:29]} Bf8 {[%emt 0:01:40]} 23. Qe2 {[%emt 0:01:07]} Bd6 {[%emt 0:00:53]} 24. g3 {[%emt 0:00:10]} Qa5 {[%emt 0:00:19]} 25. Bg2 {[%emt 0:00:34]} Qb5 {[%emt 0:00:31]} 26. Ne5 {[%emt 0:00:29]} Qe8 {[%emt 0:00:03]} 27. Nd3 {[%emt 0:00:32]} Qb5 {[%emt 0:00:20]} 28. Nf4 {[%emt 0:00:10]} Qd7 {[%emt 0:00:15]} 29. Nd3 {[%emt 0:00:13]} Qb5 {[%emt 0:00:06]} 30. Bf3 {[%emt 0:00:15]} Rf8 {[%emt 0:00:28]} 31. Bg2 {[%emt 0:00:13]} Rcc8 {[%emt 0:00:07]} 32. Ne5 {[%emt 0:00:20]} Qe8 {[%emt 0:00:17]} 33. Nd3 {[%emt 0:00:12]} Qb5 {[%emt 0:00:14]} 34. Bf1 {[%emt 0:00:15]} Qd7 {[%emt 0:00:08]} 35. Rbd1 {[%emt 0:00:30]} Qd8 {[%emt 0:00:03]} 36. Qf3 {[%emt 0:00:14]} Qc7 {[%emt 0:00:55]} 37. Rd2 {[%emt 0:00:57]} Qd7 {[%emt 0:00:36]} 38. Bg2 {[%emt 0:00:21]} Qb5 {[%emt 0:00:22]} 39. Ne5 {[%emt 0:00:21]} Rc7 {[%emt 0:00:16]} 40. Qd3 {[%emt 0:00:17]} Qa4 {[%emt 0:00:16]} 41. Qc2 {[%emt 0:00:12]} Qe8 {[%emt 0:00:41]} 42. Rde2 {[%emt 0:00:46]} Qc8 {[%emt 0:00:10]} 43. Qd2 {[%emt 0:00:43]} Qd8 {[%emt 0:00:27]} 44. Nf3 {[%emt 0:00:23]} Qd7 {[%emt 0:00:28]} 45. Qd3 {[%emt 0:00:11]} h6 {[%emt 0:00:04]} 46. Rc1 {[%emt 0:00:10]} Rfc8 {[%emt 0:00:04]} 47. Rec2 {[%emt 0:00:04]} b5 {[%emt 0:00:16]} 48. a4 {[%emt 0:00:09]} Rc4 {[%emt 0:00:45]} 49. Ne5 {[%emt 0:00:12]} Bxe5 {[%emt 0:00:04]} 50. dxe5 {[%emt 0:00:01]} Rxa4 {[%emt 0:00:15]} 51. b3 {[%emt 0:00:14]} Ra3 {[%emt 0:00:08]} 52. b4 {[%emt 0:00:38]} Qc7 {[%emt 0:00:11]} 53. Qd4 {[%emt 0:00:29]} Ra4 {[%emt 0:00:18]} 54. Bf1 {[%emt 0:00:17]} Qb8 {[%emt 0:00:18]} 55. Qe3 {[%emt 0:00:20]} Rc6 {[%emt 0:00:08]} 56. Bd3 {[%emt 0:00:13]} Qc7 {[%emt 0:00:04]} 57. Be2 {[%emt 0:00:02]} Ra3 {[%emt 0:00:03]} 58. Bf3 {[%emt 0:00:08]} Rc4 {[%emt 0:00:07]} 59. Qe1 {[%emt 0:00:13]} Qc6 {[%emt 0:00:15]} 60. Bg2 {[%emt 0:00:12]} Ra4 {[%emt 0:00:09]} 61. Ra1 {[%emt 0:00:02]} Raxb4 {[%emt 0:01:20]} 62. cxb4 {[%emt 0:00:14]} Rxc2 {[%emt 0:00:01]} 63. Qe3 {[%emt 0:00:22]} Rc3 {[%emt 0:01:11]} 64. Qd2 {[%emt 0:00:41]} Rc4 {[%emt 0:00:23]} 65. Qb2 {[%emt 0:00:26]} Qc8 {[%emt 0:00:19]} 66. Bf1 {[%emt 0:00:14]} Rc2 {[%emt 0:00:06]} 67. Qa3 {[%emt 0:00:07]} Rc6 {[%emt 0:00:01]} 68. h4 {[%emt 0:00:18]} Qc7 {[%emt 0:00:02]} 69. Qb2 {[%emt 0:00:20]} Rc2 {[%emt 0:00:11]} 70. Qd4 {[%emt 0:00:06]} Rc6 {[%emt 0:00:18]} 71. Ra3 {[%emt 0:00:24]} g6 {[%emt 0:00:25]} 72. Qa1 {[%emt 0:00:38]} Qb6 {[%emt 0:00:09]} 73. Rc3 {[%emt 0:00:19]} Qc7 {[%emt 0:00:06]} 74. Ra3 {[%emt 0:00:13]} Rc1 {[%emt 0:00:32]} 75. Qd4 {[%emt 0:00:06]} Rc6 {[%emt 0:00:07]} 76. Qf4 {[%emt 0:00:27]} Kg7 {[%emt 0:00:19]} 77. Qf6+ {[%emt 0:00:03]} Kh7 {[%emt 0:00:01]} 78. Rf3 {[%emt 0:00:20]} Kg8 {[%emt 0:00:05]} 79. h5 {[%emt 0:00:03]} Rc3 {[%emt 0:00:24]} 80. Rxc3 {[%emt 0:00:24]} Qxc3 {[%emt 0:00:01]} 81. hxg6 {[%emt 0:00:03]} Qc7 {[%emt 0:00:47]} 82. gxf7+ {[%emt 0:00:28]} Qxf7 {[%emt 0:00:02]} 83. Qxh6 {[%emt 0:00:03]} Qf5 {[%emt 0:00:16]} 84. Bh3 {[%emt 0:00:17]} Qb1+ {[%emt 0:00:45]} 85. Kh2 {[%emt 0:00:04]} Qh7 {[%emt 0:00:02]} 86. Bxe6+ {[%emt 0:00:11]} Kh8 {[%emt 0:00:08]} 87. Qxh7+ {[%emt 0:00:02]} Kxh7 {[%emt 0:00:00]} 88. Bxd5 {[%emt 0:00:01]} Kg6 {[%emt 0:00:04]} 89. f4 {[%emt 0:00:03]} Kg7 {[%emt 0:00:02]} 90. Kh3 {[%emt 0:00:01]} Kf8 {[%emt 0:00:01]} 91. Bb7 {[%emt 0:00:02]} a5 {[%emt 0:00:01]} 92. bxa5 {[%emt 0:00:01]} b4 {[%emt 0:00:02]} 93. Bd5 {[%emt 0:00:02]} Ke7 1/2-1/2

[Event "African Games-chT 2019"]
[Site "Casablanca"]
[Date "2019.08.24"]
[Round "2.21"]
[White "Mesfin, Leykun"]
[Black "Mwale, Joseph"]
[Result "1-0"]
[ECO "C77"]
[WhiteElo "2151"]
[BlackElo "2231"]
[Annotator "NA"]
[PlyCount "178"]
[EventDate "2019.08.24"]
[EventType "team-tourn"]
[EventCountry "MAR"]
[SourceTitle "playchess.com"]
[Source "ChessBase"]
[SourceQuality "1"]
[WhiteTeam "Ethiopia"]
[BlackTeam "MAW"]
[WhiteTeamCountry "ETH"]
[TimeControl "900+10"]

1. e4 {[%emt 0:00:00]} e5 {[%emt 0:00:00]} 2. Nf3 {[%emt 0:00:02]} Nc6 {[%emt 0:00:00]} 3. Bb5 {[%emt 0:00:04]} a6 {[%emt 0:00:00]} 4. Ba4 {[%emt 0:00:01]} Nf6 {[%emt 0:00:00]} 5. d3 {[%emt 0:00:01]} b5 {[%emt 0:00:00]} 6. Bb3 {[%emt 0:00:01]} Bc5 {[%emt 0:00:00]} 7. c3 {[%emt 0:00:03]} d6 {[%emt 0:00:02]} 8. h3 {[%emt 0:00:03]} O-O {[%emt 0:00:05]} 9. O-O {[%emt 0:00:02]} Bb6 {[%emt 0:00:03]} 10. Be3 {[%emt 0:00:02]} Bxe3 {[%emt 0:00:12]} 11. fxe3 {[%emt 0:00:02]} Ne7 {[%emt 0:00:01]} 12. Qe2 {[%emt 0:00:03]} Ng6 {[%emt 0:00:01]} 13. Nbd2 {[%emt 0:00:08]} Bb7 {[%emt 0:00:18]} 14. Rf2 {[%emt 0:00:46]} c5 {[%emt 0:00:02]} 15. Raf1 {[%emt 0:00:11]} Qe7 {[%emt 0:05:29]} 16. Nh2 {[%emt 0:00:21]} Bc8 {[%emt 0:01:15]} 17. Ng4 {[%emt 0:03:46]} Bxg4 {[%emt 0:00:25]} 18. hxg4 {[%emt 0:00:02]} h6 {[%emt 0:00:44]} 19. g5 {[%emt 0:00:18]} hxg5 {[%emt 0:00:07]} 20. Nf3 {[%emt 0:01:01]} Ng4 {[%emt 0:05:26]} 21. Nh4 {[%emt 0:00:05]} c4 22. Nxg6 {[%emt 0:00:04]} fxg6 {[%emt 0:00:32]} 23. Rxf8+ {[%emt 0:00:02]} Rxf8 {[%emt 0:00:02]} 24. Rxf8+ Qxf8 25. dxc4 {[%emt 0:00:16]} Nf6 {[%emt 0:00:40]} 26. cxb5+ {[%emt 0:00:05]} Kh7 {[%emt 0:00:01]} 27. bxa6 {[%emt 0:00:12]} Qa8 {[%emt 0:00:19]} 28. Qc4 {[%emt 0:00:43]} g4 {[%emt 0:00:15]} 29. Qd3 {[%emt 0:03:24]} g3 {[%emt 0:00:14]} 30. Bd5 {[%emt 0:00:11]} Qa7 {[%emt 0:00:29]} 31. Kf1 {[%emt 0:00:20]} Ng4 {[%emt 0:00:24]} 32. Ke2 {[%emt 0:00:11]} Nf2 {[%emt 0:00:20]} 33. Qc4 {[%emt 0:02:54]} Ng4 {[%emt 0:00:02]} 34. Qd3 {[%emt 0:00:26]} Nf2 {[%emt 0:00:06]} 35. Qb1 {[%emt 0:00:03]} Qxa6+ {[%emt 0:00:04]} 36. c4 {[%emt 0:00:01]} Qc8 {[%emt 0:00:33]} 37. Qe1 {[%emt 0:00:29]} Qg4+ {[%emt 0:00:45]} 38. Kd2 {[%emt 0:00:03]} Nxe4+ {[%emt 0:00:19]} 39. Bxe4 {[%emt 0:00:48]} Qxe4 {[%emt 0:00:00]} 40. Qe2 {[%emt 0:00:33]} Qb1 {[%emt 0:00:06]} 41. Kc3 {[%emt 0:00:36]} Qxa2 {[%emt 0:00:13]} 42. Qc2 {[%emt 0:01:00]} Qa5+ {[%emt 0:00:09]} 43. Kd3 {[%emt 0:01:18]} e4+ {[%emt 0:00:40]} 44. Ke2 {[%emt 0:00:19]} Qf5 {[%emt 0:00:29]} 45. Ke1 {[%emt 0:00:17]} Qe5 {[%emt 0:00:39]} 46. Qe2 {[%emt 0:00:28]} Qa5+ {[%emt 0:00:07]} 47. Kd1 {[%emt 0:00:13]} Qa4+ {[%emt 0:00:10]} 48. Kc1 {[%emt 0:00:07]} Qb3 {[%emt 0:00:05]} 49. Kb1 {[%emt 0:00:17]} Kg8 {[%emt 0:00:05]} 50. Ka1 {[%emt 0:00:13]} Kf7 {[%emt 0:00:10]} 51. Kb1 {[%emt 0:00:04]} Ke7 {[%emt 0:00:04]} 52. Ka1 {[%emt 0:00:25]} Kd8 {[%emt 0:00:19]} 53. Kb1 {[%emt 0:00:10]} Kc7 {[%emt 0:00:02]} 54. Qd2 {[%emt 0:00:21]} g5 {[%emt 0:00:43]} 55. Qd4 {[%emt 0:00:07]} g4 {[%emt 0:00:25]} 56. Qxg7+ {[%emt 0:00:04]} Kc6 {[%emt 0:00:02]} 57. Qd4 {[%emt 0:00:01]} Kc7 {[%emt 0:00:11]} 58. Kc1 {[%emt 0:00:15]} Qb4 {[%emt 0:00:11]} 59. Qxe4 {[%emt 0:00:07]} Kb6 {[%emt 0:00:15]} 60. Kc2 {[%emt 0:00:07]} Qe1 {[%emt 0:00:05]} 61. Qd4+ {[%emt 0:00:03]} Kc7 {[%emt 0:00:03]} 62. Qd2 {[%emt 0:00:03]} Qf1 {[%emt 0:00:09]} 63. Kb3 {[%emt 0:00:22]} Qf2 {[%emt 0:00:10]} 64. Kc3 {[%emt 0:00:06]} Qf6+ {[%emt 0:00:03]} 65. Qd4 {[%emt 0:00:04]} Qf1 {[%emt 0:00:11]} 66. Qd2 {[%emt 0:00:01]} Qf6+ {[%emt 0:00:01]} 67. Kc2 {[%emt 0:00:03]} Qf5+ {[%emt 0:00:03]} 68. Kb3 {[%emt 0:00:06]} Qf2 {[%emt 0:00:04]} 69. Kc3 {[%emt 0:00:03]} Qf6+ {[%emt 0:00:02]} 70. Qd4 {[%emt 0:00:02]} Qf1 {[%emt 0:00:01]} 71. Qd5 {[%emt 0:00:29]} Qe1+ {[%emt 0:00:05]} 72. Qd2 {[%emt 0:00:26]} Qf1 {[%emt 0:00:07]} 73. b4 {[%emt 0:00:05]} Qa1+ {[%emt 0:00:01]} 74. Kb3 {[%emt 0:00:09]} Qb1+ {[%emt 0:00:15]} 75. Ka4 {[%emt 0:00:09]} Qe4 {[%emt 0:00:26]} 76. Qd5 {[%emt 0:00:18]} Qxe3 {[%emt 0:00:12]} 77. b5 {[%emt 0:00:14]} Qa7+ {[%emt 0:00:17]} 78. Kb4 {[%emt 0:00:12]} Qb6 {[%emt 0:00:25]} 79. Qf7+ {[%emt 0:00:06]} Kd8 {[%emt 0:00:10]} 80. Qg8+ {[%emt 0:00:04]} Ke7 {[%emt 0:00:07]} 81. Qg5+ {[%emt 0:00:03]} Kf7 {[%emt 0:00:08]} 82. Qd5+ {[%emt 0:00:03]} Kf6 {[%emt 0:00:15]} 83. Qc6 {[%emt 0:00:05]} Qd4 {[%emt 0:00:19]} 84. b6 {[%emt 0:00:22]} Qb2+ {[%emt 0:00:06]} 85. Ka5 {[%emt 0:00:02]} Qa3+ {[%emt 0:00:08]} 86. Kb5 {[%emt 0:00:23]} Qb2+ {[%emt 0:00:13]} 87. Ka6 {[%emt 0:00:02]} Qa2+ {[%emt 0:00:02]} 88. Kb7 {[%emt 0:00:05]} Qa5 {[%emt 0:00:48]} 89. Kb8 {[%emt 0:00:28]} Ke7 1-0

[Event "African Games-chT 2019"]
[Site "Casablanca"]
[Date "2019.08.24"]
[Round "2.22"]
[White "Mphungu, Gerrard"]
[Black "Gole, Habtamu Ashenafi"]
[Result "1-0"]
[ECO "D66"]
[WhiteElo "2107"]
[BlackElo "2046"]
[Annotator "NA"]
[PlyCount "88"]
[EventDate "2019.08.24"]
[EventType "team-tourn"]
[EventCountry "MAR"]
[SourceTitle "playchess.com"]
[Source "ChessBase"]
[SourceQuality "1"]
[WhiteTeam "MAW"]
[BlackTeam "Ethiopia"]
[BlackTeamCountry "ETH"]
[TimeControl "900+10"]

1. d4 {[%emt 0:00:04]} Nf6 {[%emt 0:00:00]} 2. c4 {[%emt 0:00:01]} e6 {[%emt 0:00:00]} 3. Nc3 {[%emt 0:00:02]} d5 {[%emt 0:00:00]} 4. Bg5 {[%emt 0:00:02]} Nbd7 {[%emt 0:00:05]} 5. e3 {[%emt 0:00:01]} Be7 {[%emt 0:00:06]} 6. Nf3 {[%emt 0:00:02]} O-O {[%emt 0:00:03]} 7. Rc1 {[%emt 0:00:01]} c6 {[%emt 0:00:04]} 8. Bd3 {[%emt 0:00:20]} a6 {[%emt 0:00:09]} 9. O-O {[%emt 0:01:03]} dxc4 {[%emt 0:00:47]} 10. Bxc4 {[%emt 0:00:02]} b5 {[%emt 0:00:05]} 11. Bd3 {[%emt 0:00:17]} Bb7 {[%emt 0:00:01]} 12. Bxf6 {[%emt 0:00:25]} Nxf6 {[%emt 0:00:05]} 13. Ne4 {[%emt 0:00:06]} Nxe4 {[%emt 0:00:50]} 14. Bxe4 {[%emt 0:00:02]} Rc8 {[%emt 0:00:37]} 15. Ne5 {[%emt 0:00:09]} Bd6 {[%emt 0:01:01]} 16. h3 {[%emt 0:04:35]} Bxe5 {[%emt 0:02:11]} 17. dxe5 {[%emt 0:00:05]} Qxd1 {[%emt 0:01:24]} 18. Rfxd1 {[%emt 0:00:02]} Rfd8 {[%emt 0:00:11]} 19. b4 {[%emt 0:00:28]} Kf8 {[%emt 0:00:13]} 20. Kf1 {[%emt 0:00:47]} Ke7 {[%emt 0:00:06]} 21. Ke2 {[%emt 0:00:06]} h6 {[%emt 0:00:58]} 22. h4 {[%emt 0:00:06]} f6 {[%emt 0:00:17]} 23. Rc5 {[%emt 0:02:37]} Rxd1 {[%emt 0:01:08]} 24. Kxd1 {[%emt 0:00:00]} fxe5 {[%emt 0:00:22]} 25. Rxe5 {[%emt 0:00:09]} a5 {[%emt 0:00:14]} 26. a3 {[%emt 0:02:08]} axb4 {[%emt 0:00:07]} 27. axb4 {[%emt 0:00:01]} Ra8 {[%emt 0:00:14]} 28. Kd2 {[%emt 0:00:33]} Ra2+ {[%emt 0:00:24]} 29. Bc2 {[%emt 0:00:08]} Kd6 {[%emt 0:00:25]} 30. f4 {[%emt 0:00:27]} Bc8 {[%emt 0:00:30]} 31. g4 {[%emt 0:00:29]} Ra1 {[%emt 0:00:27]} 32. g5 {[%emt 0:00:26]} hxg5 {[%emt 0:01:10]} 33. Rxg5 {[%emt 0:00:05]} Rh1 {[%emt 0:00:24]} 34. h5 {[%emt 0:00:17]} Bd7 {[%emt 0:00:01]} 35. Bd1 {[%emt 0:00:34]} Be8 {[%emt 0:00:11]} 36. Be2 {[%emt 0:00:01]} Rh2 {[%emt 0:00:06]} 37. Ke1 {[%emt 0:00:08]} Bf7 {[%emt 0:02:20]} 38. Kd2 {[%emt 0:00:38]} Be8 {[%emt 0:00:28]} 39. Kd3 {[%emt 0:00:06]} Bf7 {[%emt 0:00:21]} 40. Bf3 {[%emt 0:00:30]} Be8 {[%emt 0:00:38]} 41. e4 {[%emt 0:01:03]} Rh3 {[%emt 0:00:45]} 42. Ke3 {[%emt 0:00:34]} Ke7 {[%emt 0:00:47]} 43. e5 {[%emt 0:01:05]} Rh2 {[%emt 0:01:16] Kf2 c5+} 44. Bg2 {[%emt 0:00:57]} Rxh5 {[%emt 0:00:06] bxc5} 1-0

[Event "African Games-chT 2019"]
[Site "Casablanca"]
[Date "2019.08.24"]
[Round "2.23"]
[White "Haile, Lidet Abate"]
[Black "Nkhoma, Desiderata"]
[Result "1-0"]
[ECO "C62"]
[WhiteElo "1593"]
[BlackElo "1481"]
[Annotator "NA"]
[PlyCount "115"]
[EventDate "2019.08.24"]
[EventType "team-tourn"]
[EventCountry "MAR"]
[SourceTitle "playchess.com"]
[Source "ChessBase"]
[SourceQuality "1"]
[WhiteTeam "Ethiopia"]
[BlackTeam "MAW"]
[WhiteTeamCountry "ETH"]
[TimeControl "900+10"]

1. e4 {[%emt 0:00:00]} e5 {[%emt 0:00:00]} 2. Nf3 {[%emt 0:00:00]} Nc6 {[%emt 0:00:00]} 3. Bb5 {[%emt 0:00:00]} d6 {[%emt 0:00:01]} 4. c3 {[%emt 0:00:25]} Be7 {[%emt 0:00:15]} 5. d4 {[%emt 0:00:07]} Bd7 {[%emt 0:00:19]} 6. Bxc6 {[%emt 0:01:24]} bxc6 {[%emt 0:00:03]} 7. dxe5 {[%emt 0:00:06]} dxe5 {[%emt 0:00:33]} 8. Nxe5 {[%emt 0:00:17]} Nf6 {[%emt 0:01:17]} 9. Nxd7 {[%emt 0:00:27]} Nxd7 {[%emt 0:00:09]} 10. O-O {[%emt 0:00:17]} O-O {[%emt 0:00:03]} 11. Bf4 {[%emt 0:00:42]} Qc8 {[%emt 0:01:35]} 12. Nd2 {[%emt 0:01:21]} Nc5 {[%emt 0:00:14]} 13. Qe2 {[%emt 0:00:41]} Qe6 {[%emt 0:00:54]} 14. Bxc7 {[%emt 0:00:43]} Bd6 {[%emt 0:00:38]} 15. Bxd6 {[%emt 0:00:09]} Qxd6 {[%emt 0:00:03]} 16. Qe3 {[%emt 0:00:38]} Ne6 {[%emt 0:02:12]} 17. Rfd1 {[%emt 0:00:31]} Qe5 {[%emt 0:00:25]} 18. Nf3 {[%emt 0:00:14]} Qh5 {[%emt 0:00:38]} 19. Nd4 {[%emt 0:00:44]} Rad8 {[%emt 0:00:24]} 20. Qe1 {[%emt 0:00:20]} Nf4 {[%emt 0:01:55]} 21. Qe3 {[%emt 0:01:53]} Ne6 {[%emt 0:01:04]} 22. h3 {[%emt 0:00:39]} c5 {[%emt 0:00:59]} 23. Nf3 {[%emt 0:00:21]} h6 {[%emt 0:00:51]} 24. Qe1 {[%emt 0:01:16]} Nf4 {[%emt 0:00:32]} 25. Qe3 {[%emt 0:01:08]} Ne6 {[%emt 0:01:10]} 26. c4 {[%emt 0:00:24]} Ng5 {[%emt 0:00:37]} 27. Rd5 {[%emt 0:00:53]} Nxf3+ {[%emt 0:01:41]} 28. Qxf3 {[%emt 0:00:05]} Qxf3 {[%emt 0:00:32]} 29. gxf3 {[%emt 0:00:02]} Rc8 {[%emt 0:00:04]} 30. Rad1 {[%emt 0:00:01]} Rc7 {[%emt 0:00:17]} 31. b3 {[%emt 0:00:25]} Rfc8 {[%emt 0:00:07]} 32. Rd8+ {[%emt 0:00:15]} Rxd8 {[%emt 0:00:03]} 33. Rxd8+ {[%emt 0:00:01]} Kh7 {[%emt 0:00:01]} 34. Kg2 {[%emt 0:00:11]} Kg6 {[%emt 0:00:03]} 35. Rd5 {[%emt 0:00:04]} f6 {[%emt 0:00:27]} 36. Kg3 {[%emt 0:00:08]} Kf7 {[%emt 0:00:15]} 37. Kg4 {[%emt 0:00:05]} Kg6 {[%emt 0:00:03]} 38. h4 {[%emt 0:00:14]} Kf7 {[%emt 0:00:18]} 39. h5 {[%emt 0:00:34]} Ke7 {[%emt 0:00:03]} 40. Kf5 {[%emt 0:00:02]} Kf7 {[%emt 0:00:06]} 41. f4 {[%emt 0:00:12]} a5 {[%emt 0:00:07]} 42. e5 {[%emt 0:00:17]} fxe5 {[%emt 0:00:45]} 43. fxe5 {[%emt 0:00:04]} Kg8 {[%emt 0:00:15]} 44. e6 {[%emt 0:00:06]} Kf8 {[%emt 0:00:04]} 45. f4 {[%emt 0:00:29]} Ke7 {[%emt 0:00:07]} 46. Rd7+ {[%emt 0:00:18]} Rxd7 {[%emt 0:00:03]} 47. exd7 {[%emt 0:00:02]} Kxd7 {[%emt 0:00:02]} 48. Kg6 {[%emt 0:00:01]} Ke6 {[%emt 0:00:14]} 49. Kxg7 {[%emt 0:00:03]} Kf5 {[%emt 0:00:01]} 50. Kxh6 {[%emt 0:00:03]} Kxf4 {[%emt 0:00:02]} 51. Kg6 {[%emt 0:00:02]} Ke4 {[%emt 0:00:06]} 52. h6 {[%emt 0:00:02]} Kd4 {[%emt 0:00:04]} 53. h7 {[%emt 0:00:02]} Kc3 {[%emt 0:00:09]} 54. h8=Q+ {[%emt 0:00:06]} Kb4 {[%emt 0:00:03]} 55. Qb2 {[%emt 0:00:15]} a4 {[%emt 0:00:26]} 56. a3+ {[%emt 0:00:02]} Ka5 {[%emt 0:00:20]} 57. b4+ {[%emt 0:00:03]} Ka6 {[%emt 0:00:32]} 58. bxc5 1-0

[Event "African Games-chT 2019"]
[Site "Casablanca"]
[Date "2019.08.24"]
[Round "2.24"]
[White "Msukwa, Tupokiwe"]
[Black "Eshete, Ruth Leykun"]
[Result "1/2-1/2"]
[ECO "D37"]
[WhiteElo "1289"]
[BlackElo "1495"]
[Annotator "NA"]
[PlyCount "37"]
[EventDate "2019.08.24"]
[EventType "team-tourn"]
[EventCountry "MAR"]
[SourceTitle "playchess.com"]
[Source "ChessBase"]
[SourceQuality "1"]
[WhiteTeam "MAW"]
[BlackTeam "Ethiopia"]
[BlackTeamCountry "ETH"]
[TimeControl "900+10"]

1. d4 {[%emt 0:00:00]} d5 {[%emt 0:00:00]} 2. c4 {[%emt 0:00:15]} e6 {[%emt 0:00:04]} 3. Nc3 {[%emt 0:00:04]} Nf6 {[%emt 0:00:07]} 4. Nf3 {[%emt 0:00:08]} Be7 {[%emt 0:00:20]} 5. e3 {[%emt 0:00:34]} O-O {[%emt 0:00:14]} 6. Be2 {[%emt 0:00:24]} Nbd7 {[%emt 0:00:51]} 7. Qc2 {[%emt 0:02:19]} dxc4 {[%emt 0:00:39]} 8. Bxc4 {[%emt 0:00:06]} Nb6 {[%emt 0:00:02]} 9. Bd3 {[%emt 0:00:45]} h6 {[%emt 0:00:35]} 10. Bd2 {[%emt 0:00:24]} Bd7 {[%emt 0:02:05]} 11. h4 {[%emt 0:01:06]} Rc8 {[%emt 0:00:35]} 12. Ne5 {[%emt 0:02:16]} Be8 {[%emt 0:01:27]} 13. g4 {[%emt 0:02:19]} Nfd5 {[%emt 0:01:33]} 14. g5 {[%emt 0:01:26]} Nb4 {[%emt 0:01:43]} 15. Qb1 {[%emt 0:00:54]} Nxd3+ {[%emt 0:00:34]} 16. Qxd3 {[%emt 0:00:03]} h5 {[%emt 0:00:27]} 17. O-O-O {[%emt 0:01:54]} Bd6 {[%emt 0:01:02]} 18. Nf3 {[%emt 0:00:46]} c5 {[%emt 0:01:31]} 19. Kb1 1/2-1/2